Cogmind - Beta 15 @@@ ROGUE MODE // 2025.05.23 @ 18:02:21 Player: Sunvar Result: Destroyed by YI-UF0 with YI-UF0's Doublenader Performance ------------- Evolutions (0) 0 Regions Visited (2) 400 Robots Destroyed (1) 5 Value Destroyed (7) 7 Prototype IDs (0) 0 Alien Tech Used (0) 0 Bonus (0) 0 TOTAL SCORE: 412 Bonus ------- None Cogmind --------- Core Integrity 0/250 Matter 53/300 Energy 100/100 System Corruption 0% Temperature Cool (0) Movement Core (50) Location -10/Mines Parts ------- > --- POWER (1) -------- (None) > --- PROPULSION (2) --- (None) > --- UTILITY (2) ------ (None) > --- WEAPON (2) ------- Small Laser > --- INVENTORY (5) ---- Seismic Detector Peak State ------------ > --- POWER ------------ (None) > --- PROPULSION ------- Light Treads Light Treads > --- UTILITY ---------- (None) > --- WEAPON ----------- Small Laser Assault Rifle > --- INVENTORY -------- (None) [Rating: 4] Favorites ----------- Power None Propulsion Light Treads Treads Light Treads Utility None Weapon Small Laser Energy Gun Small Laser Ballistic Gun Assault Rifle Launcher Grenade Launcher Build | -11 -10 -10 ------- Run | Yrd Mat Min Slots Evolved . | . . . Power . | . . . Propulsion . | . . . Utility . | . . . Weapon . | . . . Parts Attached 5 | 4 . 1 Power . | . . . Engine . | . . . Core . | . . . Reactor . | . . . Propulsion 2 | 2 . . Treads 2 | 2 . . Leg . | . . . Wheel . | . . . Hover . | . . . Flight . | . . . Utility . | . . . Device . | . . . Storage . | . . . Processor . | . . . Hackware . | . . . Protection . | . . . Artifact . | . . . Weapon 3 | 2 . 1 Energy Gun 1 | 1 . . Energy Cannon . | . . . Ballistic Gun 1 | 1 . . Ballistic Cannon . | . . . Launcher 1 | . . 1 Special Weapon . | . . . Impact Weapon . | . . . Slashing Weapon . | . . . Piercing Weapon . | . . . Special Melee Weapon . | . . . Unidentified Prototypes . | . . . Parts Lost 4 | . . 4 Power . | . . . Propulsion 2 | . . 2 Utility . | . . . Weapon 2 | . . 2 Highest Loss Streak 4 | . . 4 To Critical Strikes . | . . . Average Backups 1 | . 1 1 Power . | . . . Propulsion . | . . . Utility . | . 1 1 Weapon . | . . . Tool/Special . | . . . Unused Backups 1 | . . 1 Power . | . . . Propulsion . | . . . Utility 1 | . . 1 Weapon . | . . . Tool/Special . | . . . Average Slot Usage (%) 55 | . 57 53 Treads 26 | . 28 24 Energy Gun 14 | . 14 14 Ballistic Gun 13 | . 14 12 Peak Build Rating 4 | 4 4 4 Average Rating 3 | 2 4 3 On Entrance 2 | . 4 4 Naked Turns . | . . . Heaviest Build 3 | 3 3 3 Greatest Support 20 | 20 3 3 Greatest Overweight (x) . | . . . Average Overweight (x) . | . . . Largest Inventory Capacity 5 | 5 5 5 Average Capacity 5 | 5 5 5 Most Carried 2 | 1 1 2 Average Carried 1 | . 1 1 Final Capacity 5 | 5 5 5 Final Carried 1 | 1 1 1 Class Distribution -------------------- 100% | Mutant Dominant Class ---------------- Mutant | -10/Materials Mutant | -10/Mines Resources | -11 -10 -10 ----------- Run | Yrd Mat Min Matter Collected 40 | . . 40 Remotely . | . . . Salvage Created 28 | 28 . . Parts 4 | 4 . . Haulers Intercepted . | . . . Recyclers Shooed . | . . . Parts Field Recycled . | . . . Retrieved Matter . | . . . Parts Self-Destructed . | . . . Prevented . | . . . Kills | -11 -10 -10 ------- Run | Yrd Mat Min Combat Hostiles Destroyed . | . . . Classes Destroyed 1 | 1 . . Tunneler 1 | 1 . . Best Kill Streak 1 | 1 . . Combat Bots Only . | . . . Max Kills in Single Turn 1 | 1 . . Gunslinging . | . . . Exploded . | . . . Melee . | . . . Uniques/NPCs Destroyed . | . . . Combat | -11 -10 -10 -------- Run | Yrd Mat Min Hostile Shots Fired 42 | . 13 29 Missed 13 | . 3 10 Hits 29 | . 10 19 Projectile 29 | . 10 19 AOE 19 | . . 19 Damage Taken 746 | . 109 637 Core 258 | . 43 215 Absorbed by Shields . | . . . Core Remaining (%) 100 | 100 . . Volleys Fired 12 | 2 . 10 Largest 2 | 2 . 2 Hottest 70 | 60 . 70 Shots Fired 24 | 4 . 20 Gun 21 | 4 . 17 Cannon . | . . . Launcher 3 | . . 3 Special . | . . . Kinetic 9 | 2 . 7 Thermal 12 | 2 . 10 Explosive 3 | . . 3 Electromagnetic . | . . . Robot Hit Streak 5 | 1 . 5 Robot Miss Streak 2 | 1 . 2 Penetration Max . | . . . Secondary Targets . | . . . Shots Hit Robots 14 | 2 . 12 Core Hits 8 | 1 . 7 Critical Kills . | . . . Critical Parts Destroyed . | . . . Critical Strikes . | . . . Melee Attacks . | . . . Impact . | . . . Slashing . | . . . Piercing . | . . . Sneak Attacks . | . . . Combat Hostiles . | . . . Follow-up Attacks . | . . . Damage Inflicted 162 | 24 . 138 Guns 141 | 24 . 117 Cannons . | . . . Explosions 21 | . . 21 Melee . | . . . Ramming . | . . . Kinetic 40 | . . 40 Thermal 101 | 24 . 77 Explosive 21 | . . 21 Electromagnetic . | . . . Impact . | . . . Slashing . | . . . Piercing . | . . . Highest Corruption . | . . . Average Corruption . | . . . Corruption Purged . | . . . Corruption Blocked . | . . . Overload Shots . | . . . Overflow Damage . | . . . Projectiles . | . . . Explosions . | . . . Melee . | . . . Knockbacks . | . . . Impact . | . . . Kinetic . | . . . Secondary . | . . . Self-Inflicted Damage . | . . . Shots . | . . . Rammed . | . . . Targets Rammed . | . . . Kicked . | . . . Crushed . | . . . Highest Temperature 24 | . . 24 Average Temperature 11 | . . 11 Received Heat Transfer 78 | . 42 36 Siege Activations . | . . . Martial Activations . | . . . Shielding Activations . | . . . Robots Disrupted . | . . . Combat Hostiles . | . . . Robots Corrupted . | . . . Combat Hostiles . | . . . Parts Fried . | . . . Impact Corruptions . | . . . Robots Melted . | . . . Combat Hostiles . | . . . Parts Melted . | . . . Heat Transferred 225 | 50 . 175 Parts Sabotaged . | . . . Parts Stolen . | . . . Parts Stripped . | . . . Power Chain Reactions . | . . . Alert | -11 -10 -10 ------- Run | Yrd Mat Min Maximum Alert Level . | . . . Low Security (%) 100 | 100 100 100 Level 1 . | . . . Level 2 . | . . . Level 3 . | . . . Level 4 . | . . . Level 5 . | . . . High Security . | . . . Max Security . | . . . Peak Influence 15 | 5 15 12 Initial 3 | . 3 1 Average 1 | 1 3 . Influence Increases 32 | 5 15 12 Destroy 0b10 Robot/NC 5 | 5 . . Destroy Structure 12 | . . 12 Lose Combat Pursuer 15 | . 15 . Influence Decreases 32 | . 15 17 Entered New Map 6 | . 2 4 Time Decay 16 | . 13 3 Lost Part 10 | . . 10 Squads Dispatched . | . . . Investigation . | . . . Extermination . | . . . Reinforcement . | . . . Assault . | . . . Garrison . | . . . Intercept . | . . . Searches Triggered . | . . . Construction Impeded . | . . . Haulers Reinforced . | . . . Active Scanning Responses . | . . . Cargo Convoy Interrupts . | . . . Stealth | -11 -10 -10 --------- Run | Yrd Mat Min Distress Signals 1 | . 1 . Communications Jammed . | . . . Distress Signals . | . . . Times Spotted 13 | . 10 3 Peak Tracking Total 11 | . 11 2 Tactical Retreats 1 | . 1 . Traps | -11 -10 -10 ------- Run | Yrd Mat Min Traps Triggered . | . . . Indirectly . | . . . Trap Hack Attempts . | . . . Triggered . | . . . Disarmed . | . . . Reprogrammed . | . . . Reused . | . . . Traps Extracted . | . . . Installed . | . . . Triggered . | . . . Machines | -11 -10 -10 ---------- Run | Yrd Mat Min Machines Disabled . | . . . Max in Single Turn . | . . . Machines Repaired . | . . . Machines Dismantled . | . . . Machines Sabotaged . | . . . Overloaded Fab Kills . | . . . Hacking | -11 -10 -10 --------- Run | Yrd Mat Min Machines Accessed 2 | . 2 . Terminals 2 | . 2 . Fabricators . | . . . Repair Stations . | . . . Recycling Units . | . . . Scanalyzers . | . . . Garrison Access . | . . . Total Hacks 2 | . 2 . Successful . | . . . Failed 2 | . 2 . Catastrophic 2 | . 2 . Database Lockouts . | . . . Manual 2 | . 2 . Terminals 2 | . 2 . Fabricators . | . . . Repair Stations . | . . . Recycling Units . | . . . Scanalyzers . | . . . Garrison Access . | . . . Terminal Hacks . | . . . Fabricator Hacks . | . . . Repair Station Hacks . | . . . Recycling Unit Hacks . | . . . Scanalyzer . | . . . Garrison Access Hacks . | . . . Unauthorized Hacks . | . . . Terminals . | . . . Fabricators . | . . . Repair Stations . | . . . Recycling Units . | . . . Scanalyzers . | . . . Garrison Access . | . . . Data Cores Recovered . | . . . Used . | . . . Hacking Detections 2 | . 2 . Full Trace Events . | . . . Feedback Events . | . . . Feedback Blocked . | . . . Robot Schematics Acquired . | . . . Robots Built . | . . . Authchips . | . . . Time . | . . . Total Robot Build Rating . | . . . Part Schematics Acquired . | . . . Parts Built . | . . . Authchips . | . . . Time . | . . . Total Part Build Rating . | . . . Parts Repaired . | . . . Time . | . . . Parts Recycled . | . . . Recycled Matter . | . . . Retrieved Matter . | . . . Retrieved Components . | . . . Parts Scanalyzed . | . . . Part Schematics Acquired . | . . . Parts Damaged . | . . . Bothacking | -11 -10 -10 ------------ Run | Yrd Mat Min Used RIF Installer . | . . . Robots Hacked . | . . . Non-combat . | . . . Combat . | . . . Robot Hacks Applied . | . . . Relay Couplers Released . | . . . Fabnet Peak Effective % . | . . . Robots Rewired . | . . . Allies Hacked . | . . . Hacks Repelled . | . . . Allies | -11 -10 -10 -------- Run | Yrd Mat Min Total Allies . | . . . Largest Group . | . . . Highest-Rated Group . | . . . Highest-Rated Ally . | . . . Total Orders . | . . . Ally Attacks . | . . . Total Damage . | . . . Kills . | . . . Allies Corrupted . | . . . Allies Melted . | . . . Intel | -11 -10 -10 ------- Run | Yrd Mat Min Active Infowar (turns) . | . . . Robot Analysis Total . | . . . Derelict Logs Recovered . | . . . Drone Launches . | . . . Drone Recoveries . | . . . Exploration | -11 -10 -10 ------------- Run | Yrd Mat Min Turns Passed 168 | 35 52 81 Spaces Moved 211 | 39 74 98 Core 209 | 37 74 98 Treads 2 | 2 . . Legs . | . . . Wheels . | . . . Hover . | . . . Flight . | . . . Fastest Speed 50 | 50 50 50 Average Speed 51 | 55 50 50 Slowest Speed 160 | 160 50 50 Overloaded Moves . | . . . Propulsion Burnouts . | . . . Robots Hopped . | . . . Potential Cave-ins . | . . . Cave-ins Triggered . | . . . Exploration Rate (%) 19 | 3 26 28 Regions Visited 2 Branch Regions 1 Pre-discovered Areas . | . . . Known Exits Taken . | . . . Unknown Exits Taken 2 | 1 1 . Scrap Searched 1 | . . 1 Spaces Dug . | . . . Terrain Destroyed 17 | . . 17 Melee . | . . . Projectile . | . . . AOE 17 | . . 17 Terrain Rammed . | . . . Walls Destroyed . | . . . Machines Disabled . | . . . Actions | -11 -10 -10 --------- Run | Yrd Mat Min Total 243 | 45 88 110 Wait 15 | . 15 . Move 209 | 38 73 98 Hop . | . . . Pick Up 2 | 1 . 1 Fast Attach 4 | 4 . . Attach 1 | . . 1 Detach . | . . . Swap . | . . . Drop . | . . . Fire 12 | 2 . 10 Melee . | . . . Ram . | . . . Kick . | . . . Crush . | . . . Escape Stasis . | . . . Rewire . | . . . Trap . | . . . Miscellaneous . | . . . Route ------- -11/Scrapyard -10/Materials -10/Mines (discovered 1 exit: [*Mat]) History --------- Turn | Location | Event 6 | -11/Scrapyard | Discovered new exit (range 14) 36 | -11/Scrapyard | Entered Materials 84 | -10/Materials | Discovered new exit (range 5) 88 | -10/Materials | Entered Mines 121 | -10/Mines | Discovered new exit (range 5) 160 | -10/Mines | Core integrity fell below 50% 168 | -10/Mines | Core integrity fell below 20% 169 | -10/Mines | Destroyed by YI-UF0 with YI-UF0's Doublenader Last Messages --------------- 00120_ Searching scrap... 00120_ Found Grenade Launcher. 00120_ Found 40 Matter. 00121_ Acquired 40 matter. 00121_ EXIT=FOUND 00121_ Acquired Grenade Launcher. 00143_ G-34 Mercenary destroyed. 00143_ Laser Drill disabled. 00144_ YI-UF0: "Whaaaaaaaa!" 00151_ G-47 Trooper destroyed. 00157_ Lgt. Treads destroyed. 00157_ Assault Rifle destroyed. 00157_ U-05 Engineer builds a Wall. 00159_ Lgt. Treads destroyed. 00160_ YI-UF0 mumbles something. 00161_ U-05 Engineer builds a Wall. 00164_ The unstable cave ceiling collapses. 00165_ U-05 Engineer builds a Wall. 00167_ Grenade Launcher destroyed. 00168_ The unstable cave ceiling collapses. Map ----- +----------------------------------------------------+ | | | | | | | | | | | | | | | | | | | | | | | | | | | | | | | | | | | | | ?????????????????????# ###???????????? | | ????????????????????## ##??????????? | | ##?????????????????## #??????????? | | ##????????????????# # #??????????? | | #????????????????# #??????????? | | #????????????????# ####????????? | | #?????????????????# #????????? | | #######???########### # @ #????????? | | #???# u r #????????? | | ###### ##### ######### #????????? | | #????# #???????# #????????? | | ?????# #######???????## # #????????? | | ?????# #??????????????### g= ##????????? | | ?????# #????????????????## ????????? | | ?????# #?????????????????? #???????? | | ?????# #?????????????????? # #???????? | | ?????# ??????????????????### ???????? | | ?????###????????????????????? ??????? | | ?????????????????????????????##### ?????? | | ??????????????????????????????????u??????? | | ?????????????????????????????????????????? | | ?????????????????????????????????????????? | | ?????????????????????????????????????????? | | ?????????????????????????????????????????? | | ?????????????????????????????????????????? | | ?????????????????????????????????????????? | | ?????????????????????????????????????????? | | ?????????????????????????????????????????? | | ?????????????????????????????????????????? | | ?????????????????????????????????????????? | | ?????????????????????????????????????????? | | ?????????????????????????????????????????? | +----------------------------------------------------+ Best States ------------- Heat Dissipation 25 Energy Generation 5 Energy Capacity 100 Matter Stores 91 Matter Capacity 300 Sight Range 16 Terrain Scan Density 10 Evasion (%) 50 Item Schematics ----------------- None Robot Schematics ------------------ None Fabricated ------------ Nothing Repaired ---------- Nothing Alien Tech Used ----------------- None Achievements -------------- None Challenges ------------ None Game ------ Seed ThrusterHardenedGuard Manual? 0 Play Time 00:02:59 Cumulative 166.5 hours Start 2025.05.23 @ 18:00:10 End 2025.05.23 @ 18:02:21 Sessions 1 Manual Loads 0 Difficulty Rogue Special Mode None Game No. 117 Rogue 117 Adventurer 0 Explorer 0 Win Type - Total 6 Types 5/0/1/0/0/0/0/0/0/0 Lore% 66 Gallery% 58 Achievement% 54 Wizard Run 0 Options --------- Layout 0 ASCII 0 Keyboard 1 Movement Numpad Keybinds 0 Fullscreen 1 Font 24/Proggy Map View 76x56 Zoom Use 0% Tactical HUD 1 Map Filters NONE Filters NONE Steam X RUN: aa563880-c06d-4ddd-a46e-575d35c0c688